[Event "Sardinia World Festival-A 2024"]
[Site "Orosei"]
[Date "2024.04.27"]
[Round "1.43"]
[White "Saine, Zachary"]
[Black "Szwed, Jacek"]
[Result "*"]
[ECO "A47"]
[WhiteElo "2032"]
[BlackElo "2336"]
[Annotator "RC"]
[PlyCount "85"]
[EventDate "2024.04.26"]
[EventType "swiss"]
[EventCountry "ITA"]
[SourceTitle "playchess.com"]
[Source "ChessBase"]
[SourceQuality "1"]
[TimeControl "40/5400+30:1800+30"]

1. d4 {[%emt 0:00:04]} Nf6 {[%emt 0:00:16]} 2. Nf3 {[%emt 0:00:17]} b6 {[%emt 0:00:37]} 3. e3 {[%emt 1:31:39]} Bb7 {[%emt 0:00:35]} 4. Bd3 {[%emt 0:01:03]} g6 {[%emt 0:00:58]} 5. O-O {[%emt 0:00:51]} Bg7 {[%emt 0:00:12]} 6. Nbd2 {[%emt 0:01:39]} c5 {[%emt 1:30:52]} 7. b3 {[%emt 1:29:38]} Nc6 {[%emt 0:03:47]} 8. Bb2 {[%emt 0:00:43]} O-O {[%emt 0:03:25]} 9. a3 {[%emt 0:02:22]} d6 {[%emt 0:06:05]} 10. c4 {[%emt 0:02:09]} Nd7 {[%emt 0:04:40]} 11. Qc2 {[%emt 0:06:37]} e5 {[%emt 0:06:24]} 12. d5 {[%emt 1:15:04]} Ne7 {[%emt 0:01:57]} 13. Ne4 {[%emt 0:05:00]} Qc7 {[%emt 0:06:23]} 14. Nfd2 {[%emt 0:05:54]} h6 {[%emt 0:06:24]} 15. Ng3 {[%emt 0:06:28]} f5 {[%emt 0:04:45]} 16. f4 {[%emt 0:01:09]} Rf7 {[%emt 0:05:13]} 17. Rf2 {[%emt 0:57:17]} Kh8 {[%emt 0:05:40]} 18. Re1 {[%emt 0:06:14]} Raf8 {[%emt 0:02:28]} 19. Ref1 {[%emt 0:08:15]} Bc8 {[%emt 0:10:03]} 20. Be2 {[%emt 0:00:31]} Qd8 {[%emt 0:06:18]} 21. Nf3 {[%emt 0:02:30]} Ng8 {[%emt 0:01:56]} 22. h3 {[%emt 0:04:33]} Qe7 {[%emt 0:00:41]} 23. Re1 {[%emt 0:01:49]} Ngf6 {[%emt 0:03:12]} 24. Nh4 {[%emt 0:02:05]} Kg8 {[%emt 0:07:35]} 25. Nxg6 {[%emt 0:00:32]} Qe8 {[%emt 0:01:36]} 26. Nxf5 {[%emt 0:02:54]} Ne4 {[%emt 0:01:08]} 27. Nxd6 {[%emt 0:00:48]} Nxd6 {[%emt 0:00:53]} 28. Nxf8 {[%emt 0:00:10]} Rxf8 {[%emt 0:02:02]} 29. Bg4 {[%emt 0:01:41]} e4 {[%emt 0:01:45]} 30. Be6+ {[%emt 0:01:10]} Kh7 {[%emt 0:07:29]} 31. Bxg7 {[%emt 0:00:15]} Kxg7 {[%emt 0:00:14]} 32. Qc3+ {[%emt 0:01:10]} Kh7 {[%emt 0:01:01]} 33. f5 {[%emt 0:03:24]} Nf6 {[%emt 0:01:11]} 34. g4 {[%emt 0:01:48]} Qe7 {[%emt 0:00:57]} 35. Rg2 {[%emt 0:00:51]} Nfe8 {[%emt 0:06:08]} 36. Qe5 {[%emt 0:05:03]} Qf6 {[%emt 0:01:36]} 37. Qg3 {[%emt 0:02:33]} Bb7 {[%emt 0:02:16]} 38. h4 {[%emt 0:13:31]} Qg7 {[%emt 0:01:00]} 39. Rf1 {[%emt 0:01:30]} Bc8 {[%emt 0:00:57]} 40. g5 {[%emt 0:01:42]} Rxf5 {[%emt 0:00:38]} 41. Bxf5+ {[%emt 0:32:39]} Bxf5 {[%emt 0:30:28]} 42. Rgf2 {[%emt 0:04:05]} Qd7 {[%emt 0:00:00]} 43. h5 {[%emt 0:00:00]} *

[Event "Sardinia World Festival-A 2024"]
[Site "Orosei"]
[Date "2024.04.27"]
[Round "1.43"]
[White "Tondo, Salvatore"]
[Black "Dimitrov, Dejan"]
[Result "1-0"]
[ECO "A47"]
[WhiteElo "1790"]
[BlackElo "1998"]
[Annotator "NA RC"]
[PlyCount "97"]
[EventDate "2024.04.26"]
[EventType "swiss"]
[EventCountry "ITA"]
[SourceTitle "playchess.com"]
[Source "ChessBase"]
[SourceQuality "1"]
[TimeControl "40/5400+30:1800+30"]

1. d4 {[%emt 0:00:04]} Nf6 {[%emt 0:00:16]} 2. Nf3 {[%emt 0:00:17]} b6 {[%emt 0:00:37]} 3. e3 {[%emt 0:00:28]} Bb7 {[%emt 0:00:35]} 4. Bd3 {[%emt 0:01:03]} g6 {[%emt 0:00:58]} 5. O-O {[%emt 0:00:51]} Bg7 {[%emt 0:00:12]} 6. Nbd2 {[%emt 0:01:39]} c5 {[%emt 0:01:03]} 7. b3 {[%emt 0:05:13]} Nc6 {[%emt 0:03:47]} 8. Bb2 {[%emt 0:00:43]} O-O {[%emt 0:03:25]} 9. a3 {[%emt 0:02:22]} d6 {[%emt 0:06:05]} 10. c4 {[%emt 0:02:09]} Nd7 {[%emt 0:04:40]} 11. Qc2 {[%emt 0:06:37]} e5 {[%emt 0:06:24]} 12. d5 {[%emt 0:01:46]} Ne7 {[%emt 0:01:57]} 13. Ne4 {[%emt 0:05:00]} Qc7 {[%emt 0:06:23]} 14. Nfd2 {[%emt 0:05:54]} h6 {[%emt 0:06:24]} 15. Ng3 {[%emt 0:06:28]} f5 {[%emt 0:04:45]} 16. f4 {[%emt 0:01:09]} Rf7 {[%emt 0:05:13]} 17. Rf2 {[%emt 0:06:00]} Kh8 {[%emt 0:05:40]} 18. Re1 {[%emt 0:06:14]} Raf8 {[%emt 0:02:28]} 19. Ref1 {[%emt 0:08:15]} Bc8 {[%emt 0:10:03]} 20. Be2 {[%emt 0:00:31]} Qd8 {[%emt 0:06:18]} 21. Nf3 {[%emt 0:02:30]} Ng8 {[%emt 0:01:56]} 22. h3 {[%emt 0:04:33]} Qe7 {[%emt 0:00:41]} 23. Re1 {[%emt 0:01:49]} Ngf6 {[%emt 0:03:12]} 24. Nh4 {[%emt 0:02:05]} Kg8 {[%emt 0:07:35]} 25. Nxg6 {[%emt 0:00:32]} Qe8 {[%emt 0:01:36]} 26. Nxf5 {[%emt 0:02:54]} Ne4 {[%emt 0:01:08]} 27. Nxd6 {[%emt 0:00:48]} Nxd6 {[%emt 0:00:53]} 28. Nxf8 {[%emt 0:00:10]} Rxf8 {[%emt 0:02:02]} 29. Bg4 {[%emt 0:01:41]} e4 {[%emt 0:01:45]} 30. Be6+ {[%emt 0:01:10]} Kh7 {[%emt 0:00:28]} 31. Bxg7 {[%emt 0:00:15]} Kxg7 {[%emt 0:00:14]} 32. Qc3+ {[%emt 0:01:10]} Kh7 {[%emt 0:01:01]} 33. f5 {[%emt 0:03:24]} Nf6 {[%emt 0:01:11]} 34. g4 {[%emt 0:01:48]} Qe7 {[%emt 0:00:57]} 35. Rg2 {[%emt 0:00:51]} Nfe8 {[%emt 0:01:39]} 36. Qe5 {[%emt 0:05:03]} Qf6 {[%emt 0:01:36]} 37. Qg3 {[%emt 0:02:33]} Bb7 {[%emt 0:02:16]} 38. h4 {[%emt 0:01:00]} Qg7 {[%emt 0:01:00]} 39. Rf1 {[%emt 0:01:30]} Bc8 {[%emt 0:00:57]} 40. g5 {[%emt 0:01:42]} Rxf5 {[%emt 0:00:38]} 41. Bxf5+ {[%emt 0:32:39]} Bxf5 {[%emt 0:30:28]} 42. Rgf2 {[%emt 0:04:05]} Qd7 {[%emt 0:00:00]} 43. h5 {[%emt 0:00:00]} Ng7 {[%emt 0:00:00]} 44. g6+ {[%emt 0:00:00]} Kg8 {[%emt 0:00:00]} 45. Rh2 {[%emt 0:00:00]} Qe7 {[%emt 0:00:55]} 46. Qf4 {[%emt 0:00:00]} Qf6 {[%emt 0:01:20]} 47. Qxh6 {[%emt 0:00:00]} Qe5 {[%emt 0:00:14]} 48. Qg5 {[%emt 0:00:00]} Nge8 {[%emt 0:00:53]} 49. Rhf2 {[%emt 0:00:00]} 1-0

[Event "Sardinia World Festival-A 2024"]
[Site "Orosei"]
[Date "2024.04.27"]
[Round "1.44"]
[White "Knors, Rudi"]
[Black "Da Forno, Roberto"]
[Result "1/2-1/2"]
[ECO "D38"]
[WhiteElo "1992"]
[BlackElo "1840"]
[Annotator "NA RC"]
[PlyCount "81"]
[EventDate "2024.04.26"]
[EventType "swiss"]
[EventCountry "ITA"]
[SourceTitle "playchess.com"]
[Source "ChessBase"]
[SourceQuality "1"]
[TimeControl "40/5400+30:1800+30"]

1. d4 {[%emt 0:00:03]} d5 {[%emt 0:05:11]} 2. Nf3 {[%emt 0:00:18]} Nf6 {[%emt 0:00:11]} 3. c4 {[%emt 0:00:15]} e6 {[%emt 0:00:10]} 4. Nc3 {[%emt 0:00:18]} Bb4 {[%emt 0:02:00]} 5. Qa4+ {[%emt 0:00:56]} Nc6 {[%emt 0:01:45]} 6. e3 {[%emt 0:00:13]} O-O {[%emt 0:01:35]} 7. Bd3 {[%emt 0:00:26]} Bd7 {[%emt 0:04:01]} 8. Qc2 {[%emt 0:00:19]} h6 {[%emt 0:07:17]} 9. Bd2 {[%emt 0:02:01]} Re8 {[%emt 0:04:41]} 10. a3 {[%emt 0:04:18]} dxc4 {[%emt 0:09:21]} 11. Bxc4 {[%emt 0:00:25]} Bd6 {[%emt 0:03:09]} 12. O-O {[%emt 0:10:30]} a6 {[%emt 0:00:44]} 13. b4 {[%emt 0:01:35]} b5 {[%emt 0:00:49]} 14. Bd3 {[%emt 0:03:03]} e5 {[%emt 0:02:32]} 15. Ne4 {[%emt 0:03:46]} exd4 {[%emt 0:12:47]} 16. exd4 {[%emt 0:09:41]} Re6 {[%emt 0:06:52]} 17. Rfe1 {[%emt 0:06:48]} Qe7 {[%emt 0:05:55]} 18. Ng3 {[%emt 0:05:41]} Bxg3 {[%emt 0:07:12]} 19. hxg3 {[%emt 0:00:12]} Qd6 {[%emt 0:00:37]} 20. Rxe6 {[%emt 0:14:23]} Bxe6 {[%emt 0:02:28]} 21. Bc3 {[%emt 0:01:14]} Nd5 {[%emt 0:04:48]} 22. Bb2 {[%emt 0:00:44]} Rd8 {[%emt 0:05:06]} 23. Rc1 {[%emt 0:01:44]} Nce7 {[%emt 0:00:49]} 24. Ne5 {[%emt 0:02:00]} f6 {[%emt 0:01:40]} 25. Nf3 {[%emt 0:04:00]} Rd7 {[%emt 0:00:22]} 26. Nh4 {[%emt 0:01:22]} Nb6 {[%emt 0:01:13]} 27. Re1 {[%emt 0:06:38]} Nc4 {[%emt 0:01:13]} 28. Bh7+ {[%emt 0:03:27]} Kf8 {[%emt 0:01:17]} 29. Bc1 {[%emt 0:02:09]} g5 {[%emt 0:01:03]} 30. Ng6+ {[%emt 0:01:55]} Ke8 {[%emt 0:00:47]} 31. Nxe7 {[%emt 0:00:27]} Rxe7 {[%emt 0:00:21]} 32. Qe4 {[%emt 0:02:28]} Kd7 {[%emt 0:01:05]} 33. Bf5 {[%emt 0:00:58]} Bxf5 {[%emt 0:00:40]} 34. Qxf5+ {[%emt 0:00:02]} Kd8 {[%emt 0:00:21]} 35. Rxe7 {[%emt 0:03:32]} Qxe7 {[%emt 0:01:50]} 36. Qd5+ {[%emt 0:04:13]} Qd6 {[%emt 0:00:59]} 37. Qg8+ {[%emt 0:01:14]} Kd7 {[%emt 0:00:25]} 38. Qf7+ {[%emt 0:03:45]} Qe7 {[%emt 0:00:30]} 39. Qd5+ {[%emt 0:00:07]} Qd6 {[%emt 0:00:08]} 40. Qf7+ {[%emt 0:01:10]} Qe7 {[%emt 0:00:21]} 41. Qd5+ {[%emt 0:02:40]} 1/2-1/2

[Event "Sardinia World Festival-A 2024"]
[Site "Orosei"]
[Date "2024.04.27"]
[Round "1.45"]
[White "Knors, Rudi"]
[Black "Da Forno, Roberto"]
[Result "*"]
[ECO "D32"]
[WhiteElo "1992"]
[BlackElo "1840"]
[Annotator "NA"]
[PlyCount "55"]
[EventDate "2024.04.26"]
[EventType "swiss"]
[EventCountry "ITA"]
[SourceTitle "playchess.com"]
[Source "ChessBase"]
[SourceQuality "1"]
[TimeControl "40/5400+30:1800+30"]

1. c4 {[%emt 0:00:07]} e6 {[%emt 0:03:58]} 2. Nc3 {[%emt 0:01:43]} d5 {[%emt 0:01:17]} 3. e3 {[%emt 0:00:18]} c5 {[%emt 0:03:56]} 4. cxd5 {[%emt 0:01:12]} exd5 {[%emt 0:00:27]} 5. d4 {[%emt 1:29:40]} Nf6 {[%emt 0:01:55]} 6. Nf3 {[%emt 0:01:05]} Nc6 {[%emt 0:02:59]} 7. Be2 {[%emt 0:13:06]} Be7 {[%emt 0:04:26]} 8. O-O {[%emt 0:03:19]} O-O {[%emt 0:00:45]} 9. b3 {[%emt 1:13:52]} Bg4 {[%emt 0:05:53]} 10. dxc5 {[%emt 0:07:04]} Bxc5 {[%emt 0:01:31]} 11. Bb2 {[%emt 0:00:20]} Rc8 {[%emt 0:04:48]} 12. Na4 {[%emt 0:05:28]} Be7 {[%emt 0:03:31]} 13. Nd4 {[%emt 0:10:11]} Be6 {[%emt 0:10:30]} 14. Bf3 {[%emt 0:06:08]} Ne5 {[%emt 0:06:10]} 15. Be2 {[%emt 0:19:57]} Nc6 {[%emt 0:08:48]} 16. Rc1 {[%emt 0:05:29]} Rc7 {[%emt 0:14:47]} 17. Nc5 {[%emt 0:09:33]} Nxd4 {[%emt 0:01:04]} 18. Qxd4 {[%emt 0:00:14]} Qb8 {[%emt 0:06:11]} 19. Nxe6 {[%emt 0:01:38]} fxe6 {[%emt 0:00:26]} 20. Qe5 {[%emt 0:01:41]} Kf7 {[%emt 0:00:23]} 21. Qxc7 {[%emt 0:00:14]} Qe8 {[%emt 0:17:15]} 22. Qxb7 {[%emt 0:00:23]} Kg8 {[%emt 0:00:09]} 23. Rc7 {[%emt 0:01:04]} Qg6 {[%emt 0:00:34]} 24. Rxe7 {[%emt 0:01:02]} e5 {[%emt 0:00:46]} 25. Rxg7+ {[%emt 0:00:31]} Qxg7 {[%emt 0:00:03]} 26. Qxg7+ {[%emt 0:00:08]} Kxg7 {[%emt 0:00:12]} 27. Bxe5 {[%emt 0:00:03]} Kf7 {[%emt 0:00:29]} 28. Bxf6 {[%emt 0:00:16]} *

[Event "Sardinia World Festival-A 2024"]
[Site "Orosei"]
[Date "2024.04.27"]
[Round "1.46"]
[White "Tacconi, Antonio"]
[Black "Craciun, Dragos"]
[Result "0-1"]
[ECO "D12"]
[WhiteElo "1784"]
[BlackElo "1985"]
[Annotator "NA RC"]
[PlyCount "66"]
[EventDate "2024.04.26"]
[EventType "swiss"]
[EventCountry "ITA"]
[SourceTitle "playchess.com"]
[Source "ChessBase"]
[SourceQuality "1"]
[TimeControl "40/5400+30:1800+30"]

1. d4 {[%emt 0:00:29]} d5 {[%emt 0:00:12]} 2. c4 {[%emt 0:00:20]} c6 {[%emt 0:00:17]} 3. e3 {[%emt 0:01:14]} Nf6 {[%emt 0:00:46]} 4. Nc3 {[%emt 0:01:02]} Bf5 {[%emt 0:00:18]} 5. Nf3 {[%emt 0:00:58]} e6 {[%emt 0:01:09]} 6. a3 {[%emt 0:04:01]} Nbd7 {[%emt 0:08:36]} 7. Be2 {[%emt 0:01:26]} Bd6 {[%emt 0:01:58]} 8. c5 {[%emt 0:01:49]} Bc7 {[%emt 0:01:15]} 9. b4 {[%emt 0:02:25]} O-O {[%emt 0:11:34]} 10. O-O {[%emt 0:03:13]} b5 {[%emt 0:07:32]} 11. Bd3 {[%emt 0:09:23]} Ne4 {[%emt 0:03:56]} 12. Qc2 {[%emt 0:00:55]} Ng5 {[%emt 0:06:45]} 13. Nxg5 {[%emt 0:03:49]} Bxd3 {[%emt 0:00:08]} 14. Qxd3 {[%emt 0:01:07]} Qxg5 {[%emt 0:00:09]} 15. e4 {[%emt 0:03:03]} Qh5 {[%emt 0:05:26]} 16. e5 {[%emt 0:01:15]} f6 {[%emt 0:00:26]} 17. f4 {[%emt 0:01:19]} fxe5 {[%emt 0:05:36]} 18. dxe5 {[%emt 0:00:59]} Rf5 {[%emt 0:01:43]} 19. Qh3 {[%emt 0:06:36]} Qxh3 {[%emt 0:01:13]} 20. gxh3 {[%emt 0:00:12]} Raf8 {[%emt 0:02:44]} 21. Be3 {[%emt 0:03:09]} g5 {[%emt 0:03:22]} 22. fxg5 {[%emt 0:03:38]} Rxf1+ {[%emt 0:00:15]} 23. Rxf1 {[%emt 0:00:13]} Rxf1+ {[%emt 0:00:20]} 24. Kxf1 {[%emt 0:00:07]} Bxe5 {[%emt 0:00:08]} 25. Nb1 {[%emt 0:02:37]} Bxh2 {[%emt 0:02:44]} 26. Kg2 {[%emt 0:01:35]} Be5 {[%emt 0:00:14]} 27. Kf3 {[%emt 0:01:30]} Kg7 {[%emt 0:01:35]} 28. h4 {[%emt 0:00:36]} Kg6 {[%emt 0:00:45]} 29. Kg4 {[%emt 0:01:30]} h5+ {[%emt 0:02:04]} 30. gxh6 {[%emt 0:00:48]} Nf6+ {[%emt 0:00:25]} 31. Kh3 {[%emt 0:01:19]} Ng8 {[%emt 0:00:19]} 32. h5+ {[%emt 0:01:49]} Kxh5 {[%emt 0:00:11]} 33. h7 {[%emt 0:00:48]} Ne7 {[%emt 0:01:05]} 0-1

[Event "Sardinia World Festival-A 2024"]
[Site "Orosei"]
[Date "2024.04.27"]
[Round "1.47"]
[White "Marras, Giuseppe"]
[Black "Botez, Alexandra"]
[Result "*"]
[ECO "B32"]
[WhiteElo "1776"]
[BlackElo "1970"]
[Annotator "NA RC"]
[PlyCount "37"]
[EventDate "2024.04.26"]
[EventType "swiss"]
[EventCountry "ITA"]
[SourceTitle "playchess.com"]
[Source "ChessBase"]
[SourceQuality "1"]
[TimeControl "40/5400+30:1800+30"]

1. e4 {[%emt 0:00:10]} c5 {[%emt 0:00:28]} 2. Nf3 {[%emt 0:01:11]} Nc6 {[%emt 0:00:35]} 3. d4 {[%emt 0:01:04]} cxd4 {[%emt 0:00:18]} 4. Nxd4 {[%emt 0:00:11]} e5 {[%emt 0:00:43]} 5. Nxc6 {[%emt 0:01:15]} bxc6 {[%emt 0:00:20]} 6. Bd3 {[%emt 0:01:14]} d6 {[%emt 0:01:46]} 7. O-O {[%emt 0:00:45]} Be7 {[%emt 0:00:24]} 8. Re1 {[%emt 0:03:32]} Nf6 {[%emt 0:02:11]} 9. Bc4 {[%emt 0:01:33]} O-O {[%emt 0:00:26]} 10. Nc3 {[%emt 0:02:40]} a5 {[%emt 0:02:40]} 11. Qd3 {[%emt 0:02:40]} Be6 {[%emt 0:04:17]} 12. Bxe6 {[%emt 1:20:15]} fxe6 {[%emt 0:00:14]} 13. Qc4 {[%emt 0:01:15]} Qd7 {[%emt 0:01:31]} 14. f4 {[%emt 0:01:45]} d5 {[%emt 0:01:22]} 15. exd5 {[%emt 0:00:26]} exd5 {[%emt 0:00:38]} 16. Qf1 {[%emt 0:04:41]} Nh5 {[%emt 0:03:53]} 17. Rxe5 {[%emt 0:02:18]} Rf5 {[%emt 0:04:07]} 18. Rxf5 {[%emt 0:01:41]} Qxf5 {[%emt 1:13:37]} 19. Qf3 {[%emt 1:10:21]} *

[Event "Sardinia World Festival-A 2024"]
[Site "Orosei"]
[Date "2024.04.27"]
[Round "1.48"]
[White "Botez, Andrea"]
[Black "Di Giulio, Dario"]
[Result "*"]
[ECO "D02"]
[WhiteElo "1879"]
[BlackElo "1970"]
[Annotator "NA"]
[PlyCount "20"]
[EventDate "2024.04.26"]
[EventType "swiss"]
[EventCountry "ITA"]
[SourceTitle "playchess.com"]
[Source "ChessBase"]
[SourceQuality "1"]
[TimeControl "40/5400+30:1800+30"]

1. d4 {[%emt 0:00:05]} Nf6 {[%emt 0:00:08]} 2. Bf4 {[%emt 0:00:48]} d5 {[%emt 0:00:17]} 3. Nf3 {[%emt 0:01:08]} e6 {[%emt 0:00:16]} 4. e3 {[%emt 0:00:35]} Bd6 {[%emt 0:00:12]} 5. Nbd2 {[%emt 0:02:31]} Bxf4 {[%emt 0:00:40]} 6. exf4 {[%emt 0:00:11]} Qd6 {[%emt 0:01:17]} 7. Ne5 {[%emt 0:06:47]} Nbd7 {[%emt 0:04:23]} 8. c3 {[%emt 0:01:54]} O-O {[%emt 0:04:37]} 9. Bd3 {[%emt 0:01:52]} c5 {[%emt 0:03:56]} 10. g4 {[%emt 0:06:09]} Rd8 {[%emt 0:20:25]} *

[Event "Sardinia World Festival-A 2024"]
[Site "Orosei"]
[Date "2024.04.27"]
[Round "1.48"]
[White "Piovesan, Sara"]
[Black "Zanchini, Domenico Francesco"]
[Result "1-0"]
[ECO "D02"]
[WhiteElo "1579"]
[BlackElo "1461"]
[Annotator "NA RC"]
[PlyCount "45"]
[EventDate "2024.04.26"]
[EventType "swiss"]
[EventCountry "ITA"]
[SourceTitle "playchess.com"]
[Source "ChessBase"]
[SourceQuality "1"]
[TimeControl "40/5400+30:1800+30"]

1. d4 {[%emt 0:00:05]} Nf6 {[%emt 0:00:08]} 2. Bf4 {[%emt 0:00:48]} d5 {[%emt 0:00:17]} 3. Nf3 {[%emt 0:01:08]} e6 {[%emt 0:00:16]} 4. e3 {[%emt 0:00:35]} Bd6 {[%emt 0:00:12]} 5. Nbd2 {[%emt 0:02:31]} Bxf4 {[%emt 0:00:40]} 6. exf4 {[%emt 0:00:11]} Qd6 {[%emt 0:01:17]} 7. Ne5 {[%emt 0:06:47]} Nbd7 {[%emt 0:04:23]} 8. c3 {[%emt 0:01:54]} O-O {[%emt 0:04:37]} 9. Bd3 {[%emt 0:01:52]} c5 {[%emt 0:03:56]} 10. g4 {[%emt 0:06:09]} Rd8 {[%emt 0:20:25]} 11. g5 {[%emt 0:04:58]} Ne8 {[%emt 0:07:48]} 12. Bxh7+ {[%emt 0:03:45]} Kf8 {[%emt 0:13:27]} 13. Qh5 {[%emt 0:16:31]} Nxe5 {[%emt 0:08:09]} 14. fxe5 {[%emt 0:01:40]} Qc7 {[%emt 0:06:45]} 15. Qf3 {[%emt 0:10:19]} b6 {[%emt 0:08:51]} 16. h4 {[%emt 0:03:51]} Ba6 {[%emt 0:05:38]} 17. h5 {[%emt 0:03:04]} Rd7 {[%emt 0:03:05]} 18. h6 {[%emt 0:01:42]} Rc8 {[%emt 0:02:51]} 19. hxg7+ {[%emt 0:04:22]} Kxg7 {[%emt 0:00:41]} 20. Qh5 {[%emt 0:01:35]} Kf8 {[%emt 0:00:38]} 21. Qh4 {[%emt 0:07:45]} Bb5 {[%emt 0:04:46]} 22. Qf4 {[%emt 0:03:25]} Ba6 {[%emt 0:02:05]} 23. Rh6 {[%emt 0:01:36]} 1-0

[Event "Sardinia World Festival-A 2024"]
[Site "Orosei"]
[Date "2024.04.27"]
[Round "1.49"]
[White "Borgia, Enrico"]
[Black "Geraci, Daniele"]
[Result "*"]
[ECO "A08"]
[WhiteElo "1597"]
[BlackElo "1486"]
[Annotator "NA"]
[PlyCount "35"]
[EventDate "2024.04.26"]
[EventType "swiss"]
[EventCountry "ITA"]
[SourceTitle "playchess.com"]
[Source "ChessBase"]
[SourceQuality "1"]
[TimeControl "40/5400+30:1800+30"]

1. e4 {[%emt 0:00:22]} e6 {[%emt 0:00:22]} 2. d3 {[%emt 0:00:22]} d5 {[%emt 0:00:12]} 3. Nd2 {[%emt 0:00:54]} c5 {[%emt 0:00:54]} 4. Ngf3 {[%emt 0:00:36]} Nc6 {[%emt 0:00:56]} 5. g3 {[%emt 0:00:33]} g6 {[%emt 0:02:14]} 6. Bg2 {[%emt 0:00:55]} Bg7 {[%emt 0:00:11]} 7. c3 {[%emt 0:01:36]} Nf6 {[%emt 0:02:07]} 8. O-O {[%emt 0:00:54]} O-O {[%emt 0:01:44]} 9. Re1 {[%emt 0:02:33]} Nd7 {[%emt 0:05:52]} 10. Nf1 {[%emt 0:03:28]} d4 {[%emt 0:00:39]} 11. c4 {[%emt 0:04:07]} a6 {[%emt 0:01:37]} 12. a3 {[%emt 0:02:58]} e5 {[%emt 1:19:42]} 13. Bd2 {[%emt 0:02:10]} a5 {[%emt 0:00:29]} 14. Rb1 {[%emt 0:01:25]} a4 {[%emt 0:00:42]} 15. Bc1 {[%emt 0:01:31]} Nb6 {[%emt 0:06:01]} 16. h3 {[%emt 0:01:29]} Qc7 {[%emt 0:02:02]} 17. N1d2 {[%emt 0:06:25]} Bh6 {[%emt 0:01:09]} 18. b3 {[%emt 0:02:01]} *

[Event "Sardinia World Festival-A 2024"]
[Site "Orosei"]
[Date "2024.04.27"]
[Round "1.50"]
[White "Botez, Andrea"]
[Black "Di Giulio, Dario"]
[Result "1-0"]
[ECO "B06"]
[WhiteElo "1879"]
[BlackElo "1970"]
[Annotator "NA RC"]
[PlyCount "85"]
[EventDate "2024.04.26"]
[EventType "swiss"]
[EventCountry "ITA"]
[SourceTitle "playchess.com"]
[Source "ChessBase"]
[SourceQuality "1"]
[TimeControl "40/5400+30:1800+30"]

1. d4 {[%emt 0:00:12]} g6 {[%emt 0:00:17]} 2. Nc3 {[%emt 0:00:11]} Bg7 {[%emt 0:00:08]} 3. e4 {[%emt 0:00:08]} d6 {[%emt 0:00:22]} 4. Be3 {[%emt 0:00:13]} Nd7 {[%emt 0:00:50]} 5. Qd2 {[%emt 0:00:45]} a6 {[%emt 0:00:42]} 6. O-O-O {[%emt 0:00:49]} b6 {[%emt 0:00:57]} 7. f3 {[%emt 0:01:47]} h6 {[%emt 0:01:11]} 8. g4 {[%emt 0:06:08]} Bb7 {[%emt 0:00:37]} 9. Nh3 {[%emt 0:05:50]} e6 {[%emt 0:01:05]} 10. g5 {[%emt 0:05:20]} h5 {[%emt 0:03:55]} 11. Rg1 {[%emt 0:01:51]} Qe7 {[%emt 0:01:39]} 12. Nf4 {[%emt 0:02:30]} O-O-O {[%emt 0:01:02]} 13. h4 {[%emt 0:00:54]} Qe8 {[%emt 0:01:57]} 14. Nd3 {[%emt 0:07:45]} Ne7 {[%emt 0:01:37]} 15. Nb4 {[%emt 0:15:03]} Nb8 {[%emt 1:21:41]} 16. Bh3 {[%emt 0:11:17]} a5 {[%emt 0:00:00]} 17. Nd3 {[%emt 0:00:36]} Nd7 {[%emt 0:00:00]} 18. Nb5 {[%emt 0:08:03]} Kb8 {[%emt 0:00:00]} 19. a4 {[%emt 0:04:03]} d5 {[%emt 0:00:00]} 20. Qc3 {[%emt 0:09:38]} Rc8 {[%emt 0:00:00]} 21. Bf4 {[%emt 0:00:50]} Nc6 {[%emt 0:00:00]} 22. Rge1 {[%emt 0:03:35]} dxe4 {[%emt 0:00:00]} 23. fxe4 {[%emt 0:01:17]} Qe7 {[%emt 0:00:00]} 24. Qc4 {[%emt 0:02:05]} Rhd8 {[%emt 0:00:00]} 25. Nxc7 {[%emt 0:04:24]} Ka7 {[%emt 0:00:00]} 26. Nb5+ {[%emt 0:01:12]} Ka8 {[%emt 0:00:00]} 27. Bd6 {[%emt 0:01:55]} Qe8 {[%emt 0:00:00]} 28. e5 {[%emt 0:02:57]} Nb4 {[%emt 0:00:00]} 29. Nc7+ {[%emt 0:01:40]} Rxc7 {[%emt 0:00:00]} 30. Bxc7 {[%emt 0:00:09]} Ba6 {[%emt 0:00:00]} 31. Bg2+ {[%emt 0:01:41]} Ka7 {[%emt 0:00:00]} 32. Bxb6+ {[%emt 0:00:33]} Kxb6 {[%emt 0:00:00]} 33. Qb3 {[%emt 0:00:05]} Bxd3 {[%emt 0:09:00]} 34. Rxd3 {[%emt 0:02:04]} Ka7 {[%emt 0:00:00]} 35. Kb1 {[%emt 0:00:00]} Rb8 {[%emt 0:00:00]} 36. Rg3 {[%emt 0:00:10]} Nb6 {[%emt 0:00:00]} 37. Rc3 {[%emt 0:00:37]} Qd8 {[%emt 0:00:00]} 38. Rc5 {[%emt 0:00:30]} Nxa4 {[%emt 0:00:00]} 39. Qxa4 {[%emt 0:00:17]} Nd5 {[%emt 0:00:00]} 40. Rxa5+ {[%emt 0:00:15]} Kb7 {[%emt 0:00:00]} 41. Ra7+ {[%emt 0:30:28]} Kb6 {[%emt 0:25:19]} 42. Qa5+ {[%emt 0:00:06]} Kc6 {[%emt 0:00:54]} 43. Qc5# {[%emt 0:00:07]} 1-0

[Event "Sardinia World Festival-A 2024"]
[Site "Orosei"]
[Date "2024.04.27"]
[Round "1.50"]
[White "ANDHIN, tehjha Nidhi"]
[Black "Ferrari, Fabrizio"]
[Result "*"]
[ECO "B06"]
[WhiteElo "1461"]
[BlackElo "1595"]
[Annotator "NA RC"]
[PlyCount "28"]
[EventDate "2024.04.26"]
[EventType "swiss"]
[EventCountry "ITA"]
[SourceTitle "playchess.com"]
[Source "ChessBase"]
[SourceQuality "1"]
[TimeControl "40/5400+30:1800+30"]

1. d4 {[%emt 0:00:12]} g6 {[%emt 0:00:17]} 2. Nc3 {[%emt 0:00:11]} Bg7 {[%emt 0:00:08]} 3. e4 {[%emt 0:00:08]} d6 {[%emt 0:00:22]} 4. Be3 {[%emt 0:00:13]} Nd7 {[%emt 0:00:50]} 5. Qd2 {[%emt 0:00:45]} a6 {[%emt 0:00:42]} 6. O-O-O {[%emt 0:00:49]} b6 {[%emt 0:00:57]} 7. f3 {[%emt 0:01:47]} h6 {[%emt 0:01:11]} 8. g4 {[%emt 0:06:08]} Bb7 {[%emt 0:00:37]} 9. Nh3 {[%emt 0:05:50]} e6 {[%emt 0:01:05]} 10. g5 {[%emt 0:05:20]} h5 {[%emt 0:03:55]} 11. Rg1 {[%emt 0:01:51]} Qe7 {[%emt 0:01:39]} 12. Nf4 {[%emt 0:02:30]} O-O-O {[%emt 0:01:02]} 13. h4 {[%emt 0:00:54]} Qe8 {[%emt 0:01:57]} 14. Nd3 {[%emt 0:07:45]} Ne7 {[%emt 0:01:37]} *